Cogmind - Beta 14 --- EXPLORER MODE // 2024.10.18 @ 19:59:26 Player: viper Result: Destroyed by as-39785 with Assembled Heavy Rifle Performance ------------- Evolutions (0) 0 Regions Visited (2) 400 Robots Destroyed (20) 100 Value Destroyed (318) 318 Prototype IDs (2) 40 Alien Tech Used (0) 0 Bonus (0) 0 TOTAL SCORE: 858 Bonus ------- None Cogmind --------- Core Integrity 0/250 Matter 215/300 Energy 71/125 System Corruption 0% Temperature Cool (33) Movement Walking (400) Ox4 Location -10/Mines Parts ------- > --- POWER (2) -------- Light Ion Engine > --- PROPULSION (2) --- Aluminum Leg > --- UTILITY (2) ------ High-capacity Storage Unit Core Shielding > --- WEAPON (2) ------- EM Pulse Gun Grenade Launcher > --- INVENTORY (20) --- Aluminum Leg Aluminum Leg Aluminum Leg Aluminum Leg Targeting Computer Weapon Shielding Medium Laser Light Assault Rifle Light Assault Rifle Datajack Mining Laser Peak State ------------ > --- POWER ------------ Ion Engine Light Ion Engine > --- PROPULSION ------- Aluminum Leg Aluminum Leg > --- UTILITY ---------- High-capacity Storage Unit Core Shielding > --- WEAPON ----------- Assault Rifle Light Assault Rifle > --- INVENTORY -------- Ion Engine Aluminum Leg Aluminum Leg Aluminum Leg Targeting Computer EM Pulse Gun Medium Laser Grenade Launcher Datajack Mining Laser [Rating: 9] Favorites ----------- Power Ion Engine Engine Ion Engine Propulsion Aluminum Leg Leg Aluminum Leg Utility High-capacity Storage Unit Storage High-capacity Storage Unit Processor Targeting Computer Protection Core Shielding Weapon Assault Rifle Energy Gun Medium Laser Ballistic Gun Assault Rifle Launcher Grenade Launcher Special Melee Weapon Datajack Build | -11 -10 -10 ------- Run | Yrd Mat Min Slots Evolved 1 | . 1 . Power 1 | . 1 . Propulsion . | . . . Utility . | . . . Weapon . | . . . Parts Attached 23 | 7 5 11 Power 6 | 1 1 4 Engine 6 | 1 1 4 Core . | . . . Reactor . | . . . Propulsion 6 | 2 . 4 Treads . | . . . Leg 6 | 2 . 4 Wheel . | . . . Hover . | . . . Flight . | . . . Utility 5 | 2 3 . Device . | . . . Storage 3 | 1 2 . Processor 1 | 1 . . Hackware . | . . . Protection 1 | . 1 . Artifact . | . . . Weapon 6 | 2 1 3 Energy Gun 2 | 1 . 1 Energy Cannon . | . . . Ballistic Gun 2 | 1 1 . Ballistic Cannon . | . . . Launcher 1 | . . 1 Special Weapon . | . . . Impact Weapon . | . . . Slashing Weapon . | . . . Piercing Weapon . | . . . Special Melee Weapon 1 | . . 1 Unidentified Prototypes . | . . . Parts Lost 9 | . 1 8 Power 4 | . . 4 Propulsion 2 | . . 2 Utility 1 | . 1 . Weapon 2 | . . 2 Highest Loss Streak 6 | . 1 6 To Critical Strikes . | . . . Average Slot Usage (%) 95 | . 99 91 Engine 21 | . 25 17 Leg 24 | . 25 24 Storage 12 | . 12 12 Processor 4 | . 9 . Protection 7 | . 2 12 Energy Gun 2 | . 5 . Ballistic Gun 21 | . 19 24 Peak Build Rating 9 | 7 9 9 Average Rating 8 | 5 8 8 On Entrance 5 | . 7 9 Naked Turns . | . . . Heaviest Build 54 | 19 52 54 Greatest Support 20 | 20 20 20 Greatest Overweight (x) 5 | 5 2 5 Average Overweight (x) 1 | . 1 3 Largest Inventory Capacity 20 | 10 20 20 Average Capacity 18 | 8 17 20 Most Carried 15 | 2 10 15 Average Carried 7 | . 5 11 Final Capacity 20 | 10 20 20 Final Carried 11 | 2 10 11 Class Distribution -------------------- 100% | Hacker-Mutant Dominant Class ---------------- Hacker-Mutant | -10/Materials Hacker-Mutant | -10/Mines Resources | -11 -10 -10 ----------- Run | Yrd Mat Min Matter Collected 532 | 221 197 114 Remotely . | . . . Salvage Created 552 | . 384 168 Parts 42 | . 27 15 Haulers Intercepted 1 | . 1 . Recyclers Shooed 3 | . 1 2 Parts Field Recycled . | . . . Retrieved Matter . | . . . Parts Self-Destructed . | . . . Prevented . | . . . Kills | -11 -10 -10 ------- Run | Yrd Mat Min Combat Hostiles Destroyed 20 | . 11 9 Guns 16 | . 11 5 AOE 4 | . . 4 Classes Destroyed 7 | . 5 2 Builder 1 | . . 1 Hauler 1 | . 1 . Recycler 2 | . 1 1 Watcher 1 | . 1 . Swarmer 10 | . 8 2 Grunt 5 | . 3 2 Assembled 5 | . . 5 Best Kill Streak 6 | . 4 6 Combat Bots Only 5 | . 4 5 Max Kills in Single Turn 3 | . 1 3 Gunslinging 1 | . . 1 Exploded 3 | . . 3 Melee . | . . . Uniques/NPCs Destroyed . | . . . Combat | -11 -10 -10 -------- Run | Yrd Mat Min Hostile Shots Fired 152 | . 32 120 Missed 40 | . 6 34 Damage Taken 1072 | . 127 945 Core 251 | . 24 227 Absorbed by Shields . | . . . Redirected to Shielding 40 | . 2 38 Ignored by Resistances 665 | . 92 573 Core Remaining (%) 100 | 100 . . Volleys Fired 52 | . 28 24 Largest 2 | . 2 2 Hottest 70 | . 70 70 Shots Fired 102 | . 55 47 Gun 98 | . 55 43 Cannon . | . . . Launcher 4 | . . 4 Special . | . . . Kinetic 85 | . 46 39 Thermal 9 | . 9 . Explosive 4 | . . 4 Electromagnetic 4 | . . 4 Robot Hit Streak 20 | . 13 20 Robot Miss Streak 2 | . 2 2 Penetration Max . | . . . Secondary Targets 5 | . 3 2 Max Gunslinging Chain 1 | . 1 1 Shots Hit Robots 78 | . 38 40 Core Hits 42 | . 20 22 Critical Kills . | . . . Critical Parts Destroyed . | . . . Critical Strikes . | . . . Melee Attacks 2 | . . 2 Impact . | . . . Slashing . | . . . Piercing . | . . . Sneak Attacks . | . . . Combat Hostiles . | . . . Follow-up Attacks . | . . . Damage Inflicted 1142 | . 450 692 Guns 818 | . 450 368 Cannons . | . . . Explosions 315 | . . 315 Melee . | . . . Ramming 9 | . . 9 Kinetic 695 | . 350 345 Thermal 100 | . 100 . Explosive 315 | . . 315 Electromagnetic 23 | . . 23 Impact . | . . . Slashing . | . . . Piercing . | . . . Highest Corruption . | . . . Average Corruption . | . . . Corruption Purged . | . . . Corruption Blocked . | . . . Overload Shots . | . . . Overflow Damage . | . . . Projectiles . | . . . Explosions . | . . . Melee . | . . . Knockbacks . | . . . Impact . | . . . Kinetic . | . . . Secondary . | . . . Self-Inflicted Damage 25 | . . 25 Shots 1 | . . 1 Rammed . | . . . Targets Rammed 1 | . . 1 Kicked 1 | . . 1 Crushed . | . . . Highest Temperature 162 | . 162 91 Average Temperature 39 | . 39 38 Received Heat Transfer 132 | . 18 114 Siege Activations . | . . . Robots Corrupted . | . . . Combat Hostiles . | . . . Parts Fried . | . . . Impact Corruptions . | . . . Robots Melted . | . . . Combat Hostiles . | . . . Parts Melted . | . . . Heat Transferred 296 | . 296 . Parts Sabotaged . | . . . Parts Stolen . | . . . Parts Stripped . | . . . Power Chain Reactions . | . . . Alert | -11 -10 -10 ------- Run | Yrd Mat Min Peak Influence 255 | . 255 55 Initial . | . . . Average 35 | . 48 25 Maximum Alert Level 1 | . 1 . Low Security (%) 96 | 100 93 100 Level 1 3 | . 6 . Level 2 . | . . . Level 3 . | . . . Level 4 . | . . . Level 5 . | . . . High Security . | . . . Max Security . | . . . Squads Dispatched 3 | . 3 . Investigation 3 | . 3 . Extermination . | . . . Reinforcement . | . . . Assault . | . . . Garrison . | . . . Intercept . | . . . Searches Triggered . | . . . Construction Impeded . | . . . Haulers Reinforced . | . . . Active Scanning Responses . | . . . Cargo Convoy Interrupts . | . . . Stealth | -11 -10 -10 --------- Run | Yrd Mat Min Distress Signals . | . . . Communications Jammed . | . . . Distress Signals . | . . . Times Spotted 33 | . 14 19 Peak Tracking Total 12 | . 4 12 Tactical Retreats 1 | . . 1 Traps | -11 -10 -10 ------- Run | Yrd Mat Min Traps Triggered 2 | . 2 . Indirectly . | . . . Trap Hack Attempts . | . . . Triggered . | . . . Disarmed . | . . . Reprogrammed . | . . . Reused . | . . . Traps Extracted . | . . . Installed . | . . . Triggered . | . . . Machines | -11 -10 -10 ---------- Run | Yrd Mat Min Machines Disabled . | . . . Max in Single Turn . | . . . Machines Repaired . | . . . Machines Dismantled . | . . . Machines Sabotaged . | . . . Overloaded Fab Kills . | . . . Hacking | -11 -10 -10 --------- Run | Yrd Mat Min Machines Accessed 5 | . 5 . Terminals 5 | . 5 . Fabricators . | . . . Repair Stations . | . . . Recycling Units . | . . . Scanalyzers . | . . . Garrison Access . | . . . Total Hacks 26 | . 26 . Successful 16 | . 16 . Failed 10 | . 10 . Catastrophic . | . . . Database Lockouts . | . . . Manual . | . . . Terminals 26 | . 26 . Fabricators . | . . . Repair Stations . | . . . Recycling Units . | . . . Scanalyzers . | . . . Garrison Access . | . . . Terminal Hacks 16 | . 16 . Record 2 | . 2 . Robot Analysis 1 | . 1 . Prototype ID Bank 1 | . 1 . Branch Access Points 1 | . 1 . Machine Index 1 | . 1 . Terminal Index 1 | . 1 . Locate Traps 1 | . 1 . Dispatch Records 3 | . 3 . Maintenance Status 1 | . 1 . Reinforcement Status 1 | . 1 . Hauler Manifests 2 | . 2 . Zone Layout 1 | . 1 . Fabricator Hacks . | . . . Repair Station Hacks . | . . . Recycling Unit Hacks . | . . . Scanalyzer . | . . . Garrison Access Hacks . | . . . Unauthorized Hacks . | . . . Terminals . | . . . Fabricators . | . . . Repair Stations . | . . . Recycling Units . | . . . Scanalyzers . | . . . Garrison Access . | . . . Data Cores Recovered . | . . . Used . | . . . Hacking Detections 5 | . 5 . Full Trace Events 5 | . 5 . Feedback Events . | . . . Feedback Blocked . | . . . Robot Schematics Acquired . | . . . Robots Built . | . . . Authchips . | . . . Time . | . . . Total Robot Build Rating . | . . . Part Schematics Acquired . | . . . Parts Built . | . . . Authchips . | . . . Time . | . . . Total Part Build Rating . | . . . Parts Repaired . | . . . Time . | . . . Parts Recycled . | . . . Recycled Matter . | . . . Retrieved Matter . | . . . Retrieved Components . | . . . Parts Scanalyzed . | . . . Part Schematics Acquired . | . . . Parts Damaged . | . . . Bothacking | -11 -10 -10 ------------ Run | Yrd Mat Min Used RIF Installer . | . . . Robots Hacked . | . . . Non-combat . | . . . Combat . | . . . Robot Hacks Applied . | . . . Relay Couplers Released . | . . . Fabnet Peak Effective % . | . . . Robots Rewired . | . . . Allies Hacked . | . . . Hacks Repelled . | . . . Allies | -11 -10 -10 -------- Run | Yrd Mat Min Total Allies . | . . . Largest Group . | . . . Highest-Rated Group . | . . . Highest-Rated Ally . | . . . Total Orders . | . . . Ally Attacks . | . . . Total Damage . | . . . Kills . | . . . Allies Corrupted . | . . . Allies Melted . | . . . Intel | -11 -10 -10 ------- Run | Yrd Mat Min Robot Analysis Total 1 | . 1 . Derelict Logs Recovered . | . . . Drone Launches . | . . . Drone Recoveries . | . . . Exploration | -11 -10 -10 ------------- Run | Yrd Mat Min Turns Passed 1783 | 77 880 826 Spaces Moved 632 | 53 356 223 Core 20 | 20 . . Treads . | . . . Legs 612 | 33 356 223 Wheels . | . . . Hover . | . . . Flight . | . . . Fastest Speed 50 | 50 190 260 Average Speed 251 | 122 220 330 Slowest Speed 470 | 300 260 470 Overloaded Moves . | . . . Propulsion Burnouts . | . . . Robots Hopped . | . . . Cave-ins Triggered . | . . . Exploration Rate (%) 41 | 4 63 56 Regions Visited 2 Branch Regions 1 Pre-discovered Areas . | . . . Known Exits Taken 2 | 1 1 . Unknown Exits Taken . | . . . Scrap Searched 1 | . . 1 Spaces Dug . | . . . Terrain Destroyed 11 | . . 11 Melee . | . . . Projectile . | . . . AOE 11 | . . 11 Terrain Rammed . | . . . Walls Destroyed . | . . . Machines Disabled . | . . . Actions | -11 -10 -10 --------- Run | Yrd Mat Min Total 726 | 61 400 265 Wait . | . . . Move 630 | 52 355 223 Hop . | . . . Pick Up 14 | 2 9 3 Fast Attach 9 | 7 1 1 Attach 8 | . 2 6 Detach 2 | . 1 1 Swap 6 | . 2 4 Drop 2 | . 2 . Fire 52 | . 28 24 Melee 2 | . . 2 Ram . | . . . Kick 1 | . . 1 Crush . | . . . Escape Stasis . | . . . Rewire . | . . . Trap . | . . . Miscellaneous . | . . . Route ------- -11/Scrapyard -10/Materials (discovered 3 exits: *Mat x2 / *Min) -10/Mines (discovered 3 exits: *Mat x2 / *Exi) History --------- Turn | Location | Event 8 | -11/Scrapyard | Identified exit to Materials 8 | -11/Scrapyard | Discovered exit to Materials (range 16) 78 | -11/Scrapyard | Entered Materials 78 | -10/Materials | Evolved 1 slot: Power x1 311 | -10/Materials | Build established: Hacker-Mutant 579 | -10/Materials | Identified exit to Materials 579 | -10/Materials | Discovered exit to Materials (range 8) 621 | -10/Materials | Identified exit to Mines 701 | -10/Materials | Discovered exit to Materials (range 13) 958 | -10/Materials | Entered Mines 1005 | -10/Mines | Discovered exit to Materials (range 12) 1442 | -10/Mines | Identified exit to Exiles 1442 | -10/Mines | Discovered exit to Exiles (range 12) 1600 | -10/Mines | Found DCF Scrap (12 items) 1641 | -10/Mines | Discovered exit to Materials (range 9) 1740 | -10/Mines | Assembled infested the area 1763 | -10/Mines | Core integrity fell below 50% 1774 | -10/Mines | Core integrity fell below 20% 1784 | -10/Mines | Destroyed by as-39785 with Assembled Heavy Rifle Last Messages --------------- 01767_ K-01 Serf collects debris. 01767_ Jacked as-46584... 01768_ The unstable cave ceiling collapses. 01768_ K-01 Serf collects debris. 01769_ as-49013 destroyed. 01771_ K-01 Serf collects debris. 01773_ The unstable cave ceiling collapses. 01773_ as-08745 destroyed. 01773_ Aluminum Leg destroyed. 01774_ K-01 Serf collects debris. 01776_ The unstable cave ceiling collapses. 01776_ as-46584 destroyed. 01778_ K-01 Serf collects debris. 01779_ The unstable cave ceiling collapses. 01779_ as-20250 destroyed. 01779_ as-41615 destroyed. 01779_ as-74686 destroyed. 01780_ The unstable cave ceiling collapses. 01781_ K-01 Serf collects debris. 01782_ U-05 Engineer destroyed. Map ----- +----------------------------------------------------+ | ??# ##??##### #???????? ??????? | | ??# ##?????# #???????? ###??????? | | ??# ####### ####?????? ##????????? | | ??# % = ##?????###?????????? | | ??## ######= %= ##????????????????? | | ???## #??## *! ##???????????????? | | ????# ##### =%* #???????????????? | | ????# > ## ### #??????????????? | | ????# ### # ##??# #??????????????? | | ????# # ### #???? ##??????????????? | | ????###### ???# #????? #???????????????? | | ?????????#????# #????? #???????????????? | | ???????????#### #????? #???????????????? | | ???????????# #???? #???????????????? | | ???###?????# ####### #???????????????? | | ??## ##????# ## # #??##???????????? | | ??# #??### ## ### ?????????? | | ??# < #?## =]%# * %= ???????????? | | ??# ### !/]| %a ?=[!?????????????? | | ???# ## *! ## ##?????????????? | | ???# ### ###???????????? | | ???# ### #???????????? | | ??## ### #????????????? | | ??# ##r % ## #???????? | | ??# ##% a #??????? | | ??## ## @% % #?????? | | ???# # # a #?????? | | ???# # % #?????? | | ???# # ## #????? | | ???# ## # ##??# ????? | | ???# ## ## ###????# ????? | | ???# ## ########???????########????? | | ???# # ##??????????????????????????? | | ???# #???????????????????????????? | | ??# #???????????????????????????? | | ??# k ##???????????????????????????? | | ??## ##????????????????????????????? | | ???#######?????????????????????????????? | | ???????????????????????????????????????? | | | | | | | | | | | | | | | | | | | | | | | +----------------------------------------------------+ Best States ------------- Heat Dissipation 25 Energy Generation 15 Energy Capacity 400 Matter Stores 300 Matter Capacity 300 Sight Range 16 Terrain Scan Density 10 Resistance: KI 35 Resistance: TH 35 Resistance: EX 35 Resistance: EM 35 Resistance: I 35 Resistance: S 35 Resistance: P 35 Core Shielding 20 Evasion (%) 55 Targeting Accuracy 5 Offensive Hacking 20 Item Schematics ----------------- None Robot Schematics ------------------ None Fabricated ------------ Nothing Alien Tech Used ----------------- None Achievements -------------- None Challenges ------------ None Game ------ Seed HellfireFieldDriver Manual? 0 Play Time 00:10:59 Cumulative 1771.9 hours Start 2024.10.18 @ 19:42:37 End 2024.10.18 @ 19:59:26 Sessions 1 Manual Loads 0 Difficulty Explorer Special Mode None Game No. 980 Rogue 62 Adventurer 0 Explorer 918 Win Type - Total 11 Types 11/0/0/0/0/0/0/0/0 Lore% 44 Gallery% 76 Achievement% 63 Wizard Run 0 Options --------- Layout 1 ASCII 0 Keyboard 0 Movement Mouse Keybinds 0 Fullscreen 1 Font 48/Smallcaps Map View 55x35 Zoom Use 0% Tactical HUD 1 Map Filters NONE Filters NONE Steam 1 RUN: 3c57eb53-c01f-4100-9d1e-23f97d6885e0